bitfinex/quotes_ETHUSD_20251220
["timestamp","ask_amount","ask_price","bid_price","bid_amount"]
[1766202650098,1.00359454,2994.7,2994.1,7.14967076]
[1766202650299,1.00359454,2994.7,2994.2,2.12]
[1766202650500,1.00359454,2994.7,2994.1,7.14967076]
[1766202650691,1.00359454,2994.7,2994.3,0.47]
[1766202650893,1.00359454,2994.7,2994.3,2.12]
[1766202655498,1.00359454,2994.7,2994.3,2.121]
[1766202655698,2.57839454,2994.7,2994.3,2.121]
[1766202656082,1.5748,2994.7,2994.3,2.121]
[1766202656391,1.00356432,2994.6,2994.3,0.471]
[1766202656807,1.00356432,2994.6,2994.3,0.001]
[1766202658710,3.07826432,2994.6,2994.3,0.001]
[1766202659886,1.00356432,2994.6,2994.3,2.121]
[1766202662392,1.00356432,2994.6,2994.3,0.001]
[1766202663116,3.07826432,2994.6,2994.3,0.001]
[1766202663409,1.31159075,2994.6,2994.3,0.001]
[1766202663615,2.0747,2994.5,2994.3,0.001]
[1766202666326,1.00356432,2994.6,2994.3,0.001]
[1766202667435,3.07836432,2994.6,2994.3,0.001]
[1766202667749,2.0748,2994.6,2994.3,0.001]
[1766202669235,1.5886,2994.5,2994.3,0.001]
[1766202670239,2.0748,2994.5,2994.3,0.001]
[1766202675239,1.85376086,2994.5,2994.3,0.001]
[1766202675417,1.5886,2994.4,2994.3,0.001]
[1766202676235,1.7224229,2994.4,2994.3,0.001]
[1766202677635,0.1338229,2994.4,2994.3,0.001]
[1766202677836,0.441,2994.6,2994.3,2.1229]
[1766202678042,0.441,2994.5,2994.3,2.1229]
[1766202678442,0.81941253,2994.6,2994.3,2.1229]
[1766202678643,1.19982506,2994.6,2994.3,2.1229]
[1766202679845,1.19982506,2994.6,2994.3,0.001]
[1766202684250,3.27462506,2994.6,2994.3,0.001]
[1766202684625,2.45521253,2994.6,2994.3,0.001]
[1766202684826,3.45888429,2994.6,2994.3,0.001]
[1766202686654,0.90508843,2994.5,2994.1,0.001]
[1766202687152,0.90508843,2994.5,2994.1,1.6179]
[1766202687948,0.38998843,2994.5,2994.1,0.001]
[1766202688170,0.5151,2994.4,2994.1,0.001]
[1766202691026,0.5151,2994.3,2994.1,0.001]
[1766202695160,1.5679,2994.4,2994.1,0.001]
[1766202695373,2.0731,2994.4,2994.1,0.001]
[1766202696175,1.6098,2994.3,2994.0,0.001]
[1766202696332,0.5052,2994.2,2994.0,0.001]
[1766202698762,2.115,2994.2,2993.9,0.001]
[1766202699057,0.5052,2994.1,2993.9,0.001]
[1766202699470,2.115,2994.1,2993.9,0.001]
[1766202699764,0.5052,2994.1,2993.9,0.001]
[1766202699968,2.66046828,2994.1,2993.7,0.001]
[1766202700166,2.115,2994.0,2993.7,0.001]
[1766202702070,0.5052,2994.0,2993.7,0.001]
[1766202702239,1.50895236,2994.3,2993.7,0.001]
[1766202702441,2.59378064,2994.3,2993.8,2.0144]
[1766202702637,1.59002828,2994.3,2993.8,2.0144]
[1766202702947,4.20358064,2994.3,2993.8,2.0144]
[1766202703148,0.5052,2994.0,2993.7,0.001]
[1766202703342,0.5052,2993.8,2993.5,0.001]
[1766202703544,1.6098,2993.7,2993.3,0.001]
[1766202703867,0.13384618,2993.9,2993.3,0.001]
[1766202704166,2.24884618,2993.9,2993.3,2.0154]
[1766202705773,2.24884618,2993.9,2993.6,0.001]
[1766202706073,0.22488462,2993.8,2993.6,0.001]
[1766202708175,2.33988462,2993.8,2993.3,2.0154]
[1766202708667,0.5052,2993.7,2993.3,0.001]
[1766202709765,2.115,2993.7,2993.3,0.001]
[1766202710276,1.6098,2993.7,2993.3,0.001]
[1766202710477,0.5052,2993.6,2993.3,0.001]
[1766202710879,0.5052,2993.5,2993.3,0.001]
[1766202711044,1.6098,2993.6,2993.3,0.001]
[1766202711249,1.6098,2993.6,2993.2,0.001]
[1766202711250,2.115,2993.4,2993.2,0.001]
[1766202713001,0.5052,2993.4,2993.2,0.001]
[1766202713680,0.5052,2993.4,2993.3,0.001]
[1766202714583,0.5052,2993.5,2993.3,0.001]
[1766202715382,0.5052,2993.4,2993.3,0.001]
[1766202720382,1.6098,2993.5,2993.3,0.001]
[1766202720689,2.115,2993.6,2993.3,0.001]
[1766202720850,0.002,2993.4,2993.3,0.001]
[1766202721182,0.5052,2993.9,2993.5,1.4992]
[1766202721483,1.0780529,2993.9,2993.5,1.4992]
[1766202721787,2.2488529,2993.9,2993.4,0.5152]
[1766202724901,2.2488529,2993.9,2993.4,2.0198]
[1766202727760,1.7436529,2993.9,2993.4,2.0198]
[1766202727959,0.4853,2993.8,2993.4,2.0198]
[1766202728387,0.4853,2993.8,2993.3,0.001]
[1766202728558,0.1338529,2993.9,2993.3,0.001]
[1766202728757,0.002,2993.9,2993.5,1.5046]
[1766202729094,0.002,2993.9,2993.5,2.0196]
[1766202731595,0.4873,2993.9,2993.5,2.0196]
[1766202732000,2.1186,2993.9,2993.3,0.001]
[1766202732198,0.4853,2993.7,2993.3,0.001]
[1766202732490,2.1166,2993.7,2993.3,0.001]
[1766202734099,2.1166,2993.6,2993.3,0.001]
[1766202734962,0.4853,2993.6,2993.3,0.001]
[1766202739107,0.4853,2993.5,2993.3,0.001]
[1766202746925,1.6313,2993.6,2993.3,0.001]
[1766202747720,0.21229,2993.6,2993.3,0.001]
[1766202747904,0.002,2993.9,2993.3,0.001]
[1766202747905,0.439,2993.8,2993.4,1.5452]
[1766202748104,0.439,2993.8,2993.4,2.0447]
[1766202748505,0.9306,2993.8,2993.4,2.0447]
[1766202752032,0.9326,2993.8,2993.4,1.5452]
[1766202752202,1.60853142,2993.8,2993.4,1.5452]
[1766202752402,3.08933142,2993.8,2993.4,1.5452]
[1766202752730,3.08933142,2993.8,2993.3,0.001]
[1766202755427,2.65033142,2993.8,2993.3,0.001]
[1766202755628,3.08933142,2993.8,2993.3,0.001]
[1766202755933,0.5115,2993.7,2993.3,0.001]
[1766202756933,0.5115,2993.7,2993.3,1.581]
[1766202757935,0.5115,2993.7,2993.3,2.0871]
[1766202760637,0.5135,2993.7,2993.3,2.0871]
[1766202765346,1.6241,2993.7,2993.3,0.001]
[1766202765517,2.1356,2993.7,2993.3,0.001]
[1766202766220,0.5115,2993.6,2993.0,0.5071]
[1766202766426,2.31636409,2993.7,2993.3,1.58]
[1766202766743,1.6241,2993.7,2993.3,1.58]
[1766202767115,0.5071,2993.6,2993.3,1.58]
[1766202768847,0.5071,2993.6,2993.3,1.581]
[1766202770561,0.5071,2993.6,2993.3,2.0871]
[1766202770729,0.002,2993.7,2993.4,2.0861]
[1766202774948,0.002,2993.7,2993.4,1.58]
[1766202780586,0.002,2993.7,2993.3,0.5071]
[1766202780764,0.5135,2993.7,2993.3,0.5071]
[1766202781252,2.1356,2993.7,2993.3,0.001]
[1766202781665,0.26731,2993.7,2993.3,0.001]
[1766202781860,2.1336,2993.6,2993.3,0.001]
[1766202784768,0.5115,2993.6,2993.3,0.001]
[1766202785164,0.5175,2993.7,2993.3,0.001]
[1766202785345,0.5175,2993.7,2993.4,1.4846]
[1766202785542,0.5175,2993.7,2993.4,1.9722]
[1766202786571,0.002,2993.7,2993.4,1.9722]
[1766202788574,0.002,2993.7,2993.4,0.4876]
[1766202788779,0.002,2993.7,2993.5,1.4846]
[1766202789274,0.002,2993.7,2993.5,1.9722]
[1766202789658,0.002,2993.7,2993.5,1.4846]
[1766202790045,1.96413521,2993.9,2993.5,1.4846]
[1766202791275,0.002,2993.7,2993.5,1.4846]
[1766202791775,1.95749252,2993.9,2993.5,1.4846]
[1766202793669,3.55539252,2993.9,2993.4,0.4876]
[1766202794178,3.55539252,2993.9,2993.4,1.9722]
[1766202798187,3.55739252,2993.9,2993.4,1.9722]
[1766202798350,3.13625312,2993.9,2993.4,1.9722]
[1766202799470,3.13625312,2993.9,2993.4,1.4846]
[1766202799676,0.5325,2993.8,2993.3,0.001]
[1766202799875,2.1304,2993.8,2993.3,0.001]
[1766202800818,2.1304,2993.8,2993.0,0.001]
[1766202800819,1.5979,2993.7,2993.0,0.001]
[1766202800958,0.5325,2993.2,2992.9,0.001]
[1766202801152,7.59160489,2993.6,2992.9,0.001]
[1766202801153,0.5325,2993.0,2992.9,0.001]
[1766202801464,0.5325,2993.0,2992.5,2.4122]
[1766202802966,1.00399086,2993.2,2992.8,0.4876]
[1766202803286,1.00399086,2993.2,2993.0,1.4846]
[1766202803458,1.00399086,2993.2,2992.8,1.4846]
[1766202803654,1.00399086,2993.2,2992.8,1.9722]
[1766202805362,1.53649086,2993.2,2992.8,1.4846]
[1766202805560,1.53649086,2993.2,2992.6,7.64020489]
[1766202805780,3.13439086,2993.2,2992.6,10.2670016]
[1766202806094,3.13439086,2993.2,2992.9,0.001]
[1766202808691,1.98,2993.1,2992.6,0.4876]
[1766202809258,0.4995,2993.0,2992.6,0.4876]
[1766202809755,0.4995,2992.6,2992.0,0.001]
[1766202809959,7.15546495,2992.7,2992.0,0.001]
[1766202809960,0.4995,2992.4,2992.0,0.001]
[1766202810161,1.98,2992.4,2992.0,0.001]
[1766202810783,1.00432697,2992.3,2992.0,0.001]
[1766202810984,0.24844909,2993.0,2992.2,1.4686]
[1766202810985,0.439,2992.8,2992.2,1.4686]
[1766202811170,0.439,2992.8,2992.2,0.4384]
[1766202811367,0.439,2992.8,2992.1,7.15646495]
[1766202811592,0.4995,2992.7,2992.2,1.907]
[1766202811965,1.98,2992.7,2992.2,1.907]
[1766202813685,1.98,2992.7,2992.2,1.4686]
[1766202814781,0.4539,2992.6,2992.2,1.4686]
[1766202814979,1.4331,2992.5,2992.1,0.001]
[1766202815292,1.4331,2992.4,2992.1,0.001]
[1766202815482,0.4539,2992.3,2992.1,0.001]
[1766202815884,0.4539,2992.3,2992.0,0.001]
[1766202815885,0.4539,2992.2,2992.0,0.001]
[1766202816084,1.887,2992.7,2992.0,1.7745]
[1766202816284,2.10025436,2992.7,2992.1,1.3448]
[1766202816476,0.4539,2992.6,2992.1,1.3448]
[1766202816675,1.887,2992.6,2992.1,1.3448]
[1766202816880,0.4539,2992.5,2992.1,1.3448]
[1766202817095,0.66715436,2992.7,2992.1,1.3448]
[1766202817268,0.4539,2992.5,2992.1,1.3448]
[1766202817669,0.4539,2992.5,2992.0,0.001]
[1766202817870,1.887,2992.4,2992.0,0.001]
[1766202819578,0.4539,2992.3,2992.0,0.001]
[1766202820395,1.67144435,2992.7,2992.0,0.001]
[1766202820602,0.4539,2992.5,2992.0,1.3458]
[1766202820895,1.89718999,2992.7,2992.2,0.422]
[1766202821096,1.4331,2992.6,2992.0,8.50126495]
[1766202821269,1.887,2992.5,2992.0,8.50126495]
[1766202821464,0.4539,2992.4,2992.0,0.001]
[1766202821699,1.44328999,2992.7,2992.0,0.001]
[1766202821866,0.4539,2992.4,2992.0,0.001]
[1766202822065,1.887,2992.3,2992.0,0.001]
[1766202822894,0.4539,2992.5,2992.0,1.3458]
[1766202823100,1.887,2992.5,2992.0,1.3458]
[1766202823393,1.4331,2992.5,2992.0,1.3458]
[1766202823596,1.887,2992.5,2992.0,1.3458]
[1766202826295,1.44328999,2992.7,2992.0,1.3458]
[1766202826501,0.4539,2992.5,2992.0,1.3458]
[1766202826687,1.887,2992.5,2992.0,1.3458]
[1766202826888,1.4331,2992.6,2992.0,8.50126495]
[1766202827096,0.4539,2992.5,2992.0,10.15217794]
[1766202827294,0.4539,2992.5,2992.0,2.99671299]
[1766202827494,0.4539,2992.4,2992.0,2.99671299]
[1766202828098,0.4539,2992.4,2992.0,0.001]
[1766202828972,1.887,2992.4,2992.0,0.001]
[1766202829173,0.4539,2992.3,2992.0,0.001]
[1766202831181,1.4331,2992.4,2992.0,1.3458]
[1766202831605,0.8929,2992.6,2992.2,1.3448]
[1766202831782,0.4539,2992.5,2992.0,1.3458]
[1766202831990,0.4539,2992.4,2992.0,2.2804265]
[1766202833412,0.4539,2992.4,2992.0,1.3458]
[1766202834007,0.4539,2992.4,2992.0,0.001]
[1766202834310,0.4539,2992.2,2992.0,0.001]
[1766202836796,1.4331,2992.3,2992.0,0.001]
[1766202838609,0.4539,2992.4,2992.0,0.001]
[1766202839113,1.887,2992.4,2992.0,0.001]
[1766202839815,1.887,2992.4,2992.0,0.406504]
[1766202840190,1.887,2992.4,2992.0,0.001]
[1766202840642,3.34347439,2992.7,2992.3,1.3448]
[1766202840643,0.002,2992.7,2992.3,1.3448]
[1766202841114,0.4539,2992.6,2992.1,1.750304]
[1766202841613,1.887,2992.6,2992.1,1.750304]
[1766202842014,0.002,2992.3,2992.1,1.750304]
[1766202843598,0.002,2992.7,2992.5,0.405504]
[1766202843910,0.4539,2993.4,2992.6,0.405504]
[1766202844111,1.887,2993.2,2992.6,1.750304]
[1766202844411,1.887,2993.2,2992.6,2.137804]
[1766202844800,0.462,2993.1,2992.6,2.137804]
[1766202845006,1.7135,2993.1,2992.6,2.137804]
[1766202845419,1.7135,2993.1,2992.6,1.750304]
[1766202848215,0.439,2993.2,2992.6,0.405504]
[1766202848518,1.6905,2993.2,2992.7,1.2912]
[1766202848693,1.7135,2993.1,2992.6,0.786904]
[1766202848893,1.7135,2993.1,2992.6,0.405504]
[1766202849192,1.7135,2993.1,2992.7,0.405504]
[1766202849602,1.2515,2993.1,2992.7,0.405504]
[1766202849805,0.462,2993.0,2992.7,0.405504]
[1766202850010,1.7135,2993.0,2992.7,0.405504]
[1766202854130,0.462,2993.0,2992.7,0.405504]
[1766202854306,1.6905,2993.2,2992.7,0.405504]
[1766202854507,2.1525,2993.2,2992.4,0.405504]
[1766202854707,2.1525,2993.2,2992.6,2.071304]
[1766202854932,1.7135,2993.2,2992.6,2.071304]
[1766202855110,2.1525,2993.2,2992.6,2.071304]
[1766202855316,0.462,2993.1,2992.6,2.071304]
[1766202855512,4.59423095,2993.4,2992.7,0.3735]
[1766202855709,1.6905,2993.2,2992.9,0.405504]
[1766202855909,0.462,2993.1,2992.9,0.405504]
[1766202856104,0.462,2993.0,2992.4,1.2912]
[1766202856309,1.7135,2993.0,2992.5,1.00404126]
[1766202856809,1.7135,2993.0,2992.5,2.29624126]
[1766202857008,1.7135,2993.0,2992.5,3.08742539]
[1766202857431,0.462,2993.0,2992.6,1.2912]
[1766202857638,2.1545,2993.2,2992.6,1.7618]
[1766202857812,0.462,2993.1,2992.6,1.7618]
[1766202858011,0.462,2993.1,2992.7,0.405504]
[1766202859438,1.7135,2993.1,2992.7,0.405504]
[1766202860310,2.26302981,2993.1,2992.7,0.405504]
[1766202861026,0.462,2993.0,2992.7,0.405504]
[1766202861236,1.7135,2993.0,2992.7,0.405504]
[1766202861416,1.7135,2993.0,2992.5,0.001]
[1766202861721,0.462,2992.9,2992.5,0.406504]
[1766202863241,1.7203,2992.9,2992.5,0.406504]
[1766202863444,1.7227,2993.1,2992.5,2.102904]
[1766202863939,1.7227,2993.1,2992.5,0.840104]
[1766202864241,1.7227,2993.1,2992.7,0.405504]
[1766202864443,1.93907,2993.1,2992.7,0.405504]
[1766202868445,1.7227,2993.0,2992.5,0.406504]
[1766202868644,0.4644,2992.9,2992.5,0.406504]
[1766202870343,1.2583,2993.0,2992.5,1.669304]
[1766202870544,1.47467,2993.1,2992.5,0.001]
[1766202870842,1.7227,2992.9,2992.5,0.001]
[1766202881050,0.4644,2992.9,2992.5,0.001]
[1766202881856,1.638,2992.9,2992.5,0.001]
[1766202882958,0.4254,2992.8,2992.5,0.001]
[1766202884331,1.601,2992.9,2992.5,0.001]
[1766202884532,0.1792567,2992.8,2992.5,0.001]
[1766202893564,0.4274,2992.9,2992.5,0.001]
[1766202893565,0.002,2992.9,2992.7,1.657]
[1766202893865,0.002,2992.9,2992.5,1.658]
[1766202894060,0.002,2992.9,2992.5,0.001]
[1766202894240,0.002,2992.9,2992.7,1.657]
[1766202897762,0.002,2992.9,2992.7,0.4267]
[1766202898075,0.002,2992.9,2992.7,1.657]
[1766202899249,0.002,2992.9,2992.7,0.4267]
[1766202899574,0.002,2993.1,2992.8,2.41524386]
[1766202899872,0.002,2993.1,2992.9,1.657]
[1766202901238,0.002,2993.4,2993.1,1.2303]
[1766202901445,0.441,2993.4,2993.1,1.2303]
[1766202901968,0.441,2993.4,2993.0,0.4267]
[1766202902851,0.441,2993.4,2993.0,1.657]
[1766202903347,0.441,2993.4,2992.9,0.405504]
[1766202903348,0.002,2993.4,2993.1,0.4267]
[1766202903546,0.002,2993.4,2993.2,1.2303]
[1766202904989,0.002,2993.4,2993.2,1.222]
[1766202914088,0.002,2993.6,2993.3,1.2183]
[1766202914293,0.002,2993.6,2993.4,1.6697]
[1766202914873,0.002,2993.6,2993.4,1.2183]
[1766202915079,1.6495,2993.6,2993.1,1.6697]
[1766202915714,0.4325,2993.5,2993.1,1.6697]
[1766202915884,0.4325,2993.5,2993.1,1.2183]
[1766202916079,0.4325,2993.5,2993.1,0.405504]
[1766202916280,1.215,2993.5,2993.1,0.405504]
[1766202916485,0.4325,2993.4,2993.1,0.405504]
[1766202918482,0.4325,2993.3,2993.1,0.405504]
[1766202918666,1.6475,2993.3,2993.0,0.13386186]
[1766202919373,1.6475,2993.3,2992.8,1.6697]
[1766202919591,1.6475,2993.3,2992.9,0.21087]
[1766202920097,1.6475,2993.3,2992.9,1.00396398]
[1766202920299,1.6475,2993.3,2992.8,1.6697]
[1766202920600,1.6475,2993.3,2992.9,0.405504]
[1766202921103,0.4325,2993.3,2992.9,1.623804]
[1766202921474,0.4325,2993.3,2992.9,1.624804]
[1766202922100,1.215,2993.3,2992.9,0.406504]
[1766202922396,1.6475,2993.2,2992.9,0.406504]
[1766202922996,1.6475,2993.2,2992.9,0.001]
[1766202928712,0.002,2993.3,2992.9,0.001]
[1766202929424,0.002,2993.3,2993.0,1.5755]
[1766202929710,0.002,2993.3,2993.1,1.5755]
[1766202933604,0.002,2993.3,2992.9,0.001]
[1766202933810,0.002,2993.3,2992.9,1.5765]
[1766202937022,0.002,2993.3,2992.9,1.536]
[1766202940017,0.4335,2993.3,2992.9,1.536]
[1766202947401,0.002,2993.3,2992.9,1.536]
[1766202956030,0.002,2993.3,2992.9,0.001]
[1766202956206,1.5322,2993.3,2992.9,0.001]
[1766202956729,0.96488938,2993.3,2992.9,0.001]
[1766202956924,2.06358938,2993.3,2992.9,0.001]
[1766202964343,0.002,2993.3,2992.9,1.4902]
[1766202964548,0.441,2993.4,2993.1,0.4072]
[1766202964715,0.441,2993.4,2993.2,1.082]
[1766202965634,0.441,2993.4,2993.1,0.4072]
[1766202966143,0.441,2993.4,2993.1,0.3982]
[1766202967438,0.002,2993.4,2993.1,0.3982]
[1766202967644,0.002,2993.4,2993.1,1.4802]
[1766202967938,0.002,2993.4,2993.0,1.082]
[1766202968260,0.002,2993.4,2993.1,1.4892]
[1766202969949,4.19117915,2993.6,2993.1,1.4892]
[1766202970245,1.4634,2993.5,2992.9,1.4902]
[1766202970445,1.4634,2993.5,2992.9,0.4082]
[1766202970646,1.4634,2993.5,2993.0,1.082]
[1766202970822,1.4634,2993.5,2993.0,1.4892]
[1766202971346,4.80398515,2993.5,2993.0,1.4892]
[1766202972354,1.4634,2993.5,2993.0,1.4892]
[1766202973351,1.4654,2993.5,2993.0,1.4892]
[1766202975856,4.80600604,2993.5,2993.0,1.4892]
[1766202976155,5.76063362,2993.5,2993.0,1.4892]
[1766202980363,5.35093362,2993.5,2993.0,1.4892]
[1766202980535,1.3859,2993.4,2993.0,0.001]
[1766202980734,0.3837,2993.3,2993.0,0.001]
[1766202980942,3.72449922,2993.3,2993.0,0.001]
[1766202981758,0.3837,2993.3,2993.0,0.001]
[1766202990562,3.72451936,2993.3,2993.0,0.001]
[1766202990859,5.49301956,2993.3,2993.0,0.001]
[1766202991250,4.10711956,2993.3,2992.7,0.439]
[1766202991545,1.3859,2993.1,2992.7,0.439]
[1766202991740,1.3859,2993.1,2992.6,1.00405134]
[1766202994771,0.3889,2993.0,2992.6,1.00405134]
[1766202996737,1.3751,2993.0,2992.6,1.00405134]
[1766202999762,0.9862,2993.0,2992.6,1.00405134]
[1766202999964,3.73147123,2993.5,2992.8,1.3451]
[1766203000157,4.71767123,2993.5,2992.6,1.00405134]
[1766203000462,4.71767123,2993.5,2992.9,1.3451]
[1766203001058,8.05824246,2993.5,2992.9,1.3451]
[1766203001367,7.66934246,2993.5,2992.9,1.3451]
[1766203001570,0.3889,2993.4,2992.9,1.3451]
[1766203001760,0.80582425,2993.3,2992.9,1.3451]
[1766203002579,4.14667842,2993.3,2992.9,1.3451]
[1766203003368,4.14667842,2993.3,2992.9,0.3685]
[1766203003572,5.52177842,2993.3,2992.7,1.3451]
[1766203003955,5.52377842,2993.3,2992.7,1.3451]
[1766203007578,1.3751,2993.1,2992.6,1.00405134]
[1766203007896,1.3751,2993.1,2992.5,1.3461]
[1766203009482,3.7300293,2993.0,2992.5,1.3461]
[1766203011164,4.7162293,2993.0,2992.5,1.3461]
[1766203011356,1.84672293,2992.9,2992.5,0.001]
[1766203012274,0.86052293,2992.9,2992.5,1.3461]
[1766203012477,0.3889,2992.9,2992.5,1.3461]
[1766203014284,3.3411293,2993.0,2992.5,1.3461]
[1766203017987,4.7162293,2993.0,2992.5,1.3461]
[1766203019980,3.3411293,2993.0,2992.5,0.9776]
[1766203020182,4.71637114,2992.9,2992.5,0.001]
[1766203020879,5.62272554,2992.9,2992.5,0.001]
[1766203021604,5.23382554,2992.9,2992.5,0.001]
[1766203021896,0.3889,2992.7,2992.5,0.001]
[1766203024269,0.9862,2992.8,2992.5,0.001]
[1766203027587,4.34538108,2993.0,2992.6,1.3941]
[1766203027887,0.43473811,2992.9,2992.6,1.3941]
[1766203029679,0.43473811,2992.9,2992.5,0.001]
[1766203029876,0.43473811,2992.9,2992.6,1.0094]
[1766203030080,0.43473811,2992.9,2992.7,1.3941]
[1766203030482,0.43473811,2992.9,2992.5,0.001]
[1766203031396,0.43473811,2992.9,2992.5,1.0104]
[1766203031594,0.43473811,2992.9,2992.5,1.3951]
[1766203035302,1.00622275,2993.0,2992.6,1.3941]
[1766203035672,0.002,2993.0,2992.7,0.3847]
[1766203035872,0.002,2993.0,2992.7,1.3941]
[1766203051220,0.002,2993.0,2992.7,1.0094]
[1766203052621,1.32202275,2993.1,2992.7,1.0094]
[1766203053418,0.002,2993.0,2992.7,1.0094]
[1766203061514,0.002,2993.0,2992.7,1.3791]
[1766203071729,0.002,2993.0,2992.8,0.9639]
[1766203071931,0.002,2993.0,2992.8,1.3336]
[1766203073831,0.002,2993.1,2992.8,1.3336]
[1766203074039,0.002,2993.3,2993.0,1.3336]
[1766203082948,0.002,2993.3,2992.8,0.3697]
[1766203083122,1.3361,2993.3,2992.8,1.3336]
[1766203083323,0.9776,2993.2,2992.7,1.00405134]
[1766203083650,1.3341,2993.1,2992.7,0.27786513]
[1766203083825,0.002,2993.3,2992.6,0.9786]
[1766203084030,1.3341,2993.0,2992.6,0.001]
[1766203090358,1.3341,2993.0,2992.6,1.0011]
[1766203090558,1.4431488,2993.2,2992.8,1.0001]
[1766203090731,1.4431488,2993.2,2992.8,1.3789]
[1766203090931,1.4431488,2993.2,2992.6,0.001]
[1766203091131,1.4431488,2993.2,2992.8,0.3788]
[1766203091342,1.62662237,2993.2,2992.9,1.0001]
[1766203091541,0.62247357,2993.2,2992.9,1.0001]
[1766203091756,1.62257357,2993.2,2992.9,1.0001]
[1766203092060,0.002,2993.0,2992.9,1.0001]
[1766203094559,0.002,2993.0,2992.8,0.3788]
[1766203101642,0.002,2993.0,2992.5,0.001]
[1766203101643,0.9355,2992.9,2992.5,0.001]
[1766203101842,1.2942,2992.7,2992.5,0.001]
[1766203102740,0.22943,2992.7,2992.5,0.001]
[1766203102960,1.00426982,2992.6,2992.5,0.001]
[1766203105772,1.00426982,2992.6,2992.2,1.3371]
[1766203113868,1.00426982,2992.6,2992.3,0.3537]
[1766203114048,1.00426982,2992.6,2992.3,1.3371]
[1766203117201,1.00426982,2992.6,2992.3,1.3381]
[1766203117400,0.441,2993.0,2992.5,1.3643]
[1766203117720,1.62902472,2993.0,2992.5,1.3643]
[1766203118508,2.98252472,2993.0,2992.5,1.3643]
[1766203120687,0.9808,2992.9,2992.5,0.3713]
[1766203121510,2.98252472,2993.0,2992.5,1.3643]
[1766203122312,0.9808,2992.9,2992.5,0.3713]
[1766203122500,0.9808,2992.9,2992.3,1.00521603]
[1766203122501,0.9808,2992.8,2992.3,1.00521603]
[1766203122691,1.3535,2992.8,2992.3,1.00521603]
[1766203124526,0.41628686,2992.8,2992.3,1.00521603]
[1766203124684,1.3535,2992.6,2992.3,0.001]
[1766203127821,0.9808,2992.7,2992.3,0.001]
[1766203128022,1.3535,2992.6,2992.3,0.001]
[1766203132420,1.04789702,2992.8,2992.3,1.3653]
[1766203132421,1.00431016,2992.8,2992.3,1.3653]
[1766203132718,1.00431016,2992.8,2992.4,1.3643]
[1766203133299,0.439,2992.9,2992.4,1.3643]
[1766203133604,1.4198,2992.9,2992.4,1.3643]
[1766203133820,0.002,2992.6,2992.4,1.3643]
[1766203140621,0.002,2992.6,2992.3,0.001]
[1766203140622,0.002,2993.0,2992.6,0.3713]
[1766203140947,0.002,2993.0,2992.6,1.3643]
[1766203142798,0.002,2993.0,2992.4,7.15767579]
[1766203143034,0.002,2993.0,2992.7,0.3713]
[1766203143337,0.002,2993.0,2992.7,1.3643]
[1766203147447,0.04358686,2993.2,2992.4,0.439]
[1766203147949,0.04358686,2993.2,2992.7,0.9693]
[1766203148105,1.30798686,2993.2,2992.7,1.3139]
[1766203150147,0.9171,2993.1,2992.7,1.3139]
[1766203152571,0.9171,2993.1,2992.7,0.3446]
[1766203154263,0.9171,2993.1,2992.5,1.3139]
[1766203154558,0.9171,2993.1,2992.6,0.51989]
[1766203154964,1.2644,2993.1,2992.6,0.51989]
[1766203155132,0.002,2993.2,2992.9,8.47016727]
[1766203155332,0.002,2993.2,2992.9,1.3139]
[1766203156439,0.002,2993.2,2993.0,1.00399086]
[1766203160065,0.002,2993.2,2993.0,1.35929086]
[1766203160458,0.002,2993.2,2993.0,0.3553]
[1766203160667,0.002,2993.2,2993.1,0.3493]
[1766203161545,0.002,2993.3,2993.1,1.22797673]
[1766203161742,0.002,2993.5,2993.2,0.3553]
[1766203164082,0.002,2993.5,2993.1,1.2752]
[1766203164380,0.002,2993.5,2993.1,1.6305]
[1766203165280,0.002,2993.5,2993.1,0.7046]
[1766203165463,1.3153,2993.5,2993.1,0.3493]
[1766203165995,0.3542,2993.5,2993.1,0.3493]
[1766203166147,0.9611,2993.4,2993.1,0.3493]
[1766203166343,1.3133,2993.4,2993.1,0.3493]
[1766203167991,0.9611,2993.3,2993.0,0.001]
[1766203170160,0.3522,2993.4,2993.0,0.001]
[1766203175666,1.2636,2993.4,2993.0,0.001]
[1766203176389,1.2656,2993.4,2993.0,0.001]
[1766203178388,0.002,2993.4,2993.0,1.3233]
[1766203179491,0.002,2993.4,2993.1,0.371]
[1766203179791,0.002,2993.4,2993.1,1.3223]
[1766203179988,0.002,2993.4,2993.1,0.9513]
[1766203180168,0.002,2993.4,2993.2,0.371]
[1766203180770,0.002,2993.4,2993.1,0.9513]
[1766203183365,0.002,2993.4,2993.0,0.50586813]
[1766203183566,1.2593,2993.4,2993.0,0.13486813]
[1766203185276,0.9114,2993.3,2992.7,0.439]
[1766203185593,0.9114,2993.1,2992.9,1.00401102]
[1766203185963,0.9114,2993.1,2992.7,0.81]
[1766203186168,0.9114,2993.1,2992.8,0.9114]
[1766203186894,0.9114,2993.1,2992.7,1.7214]
[1766203187100,0.9114,2993.1,2992.7,2.6727]